Body,Body Name,Date,TransNo,Amount � (Excl VAT),Supplier name,Description,Expense Area,Expense Type,Expense Code,
http://opendatacommunities.org/id/london-borough-council/sutton,London Borough of Sutton,26/07/2022,10008654,2.96, AMZNMKTPLACE,TOYS AND EQUIPMENT,Health and Wellbeing,Equipment And Materials Purchase,A40000,
http://opendatacommunities.org/id/london-borough-council/sutton,London Borough of Sutton,26/07/2022,10008654,14.53, AMZNMKTPLACE,TOYS AND EQUIPMENT,Health and Wellbeing,Equipment And Materials Purchase,A40000,
http://opendatacommunities.org/id/london-borough-council/sutton,London Borough of Sutton,08/08/2022,10008654,12.49, AMZNMKTPLACE AMAZON.CO,TOYS AND EQUIPMENT,Health and Wellbeing,Equipment And Materials Purchase,A40000,
http://opendatacommunities.org/id/london-borough-council/sutton,London Borough of Sutton,06/08/2022,10008654,11.67, SPORTSDIRECT.COM RETAI,TOYS AND EQUIPMENT,Health and Wellbeing,Equipment And Materials Purchase,A40000,
http://opendatacommunities.org/id/london-borough-council/sutton,London Borough of Sutton,04/08/2022,10008654,20.57, EBAY O 04-08945-71533,TOYS AND EQUIPMENT,Health and Wellbeing,Equipment And Materials Purchase,A40000,
http://opendatacommunities.org/id/london-borough-council/sutton,London Borough of Sutton,23/08/2022,10008654,4.57, AMZNMKTPLACE,GLOVES,Health and Wellbeing,Equipment And Materials Purchase,A40000,
http://opendatacommunities.org/id/london-borough-council/sutton,London Borough of Sutton,22/08/2022,10008654,8.32, TWINKL,TWINKL SUBSCRIPTION,Health and Wellbeing,Equipment And Materials Purchase,A40000,
http://opendatacommunities.org/id/london-borough-council/sutton,London Borough of Sutton,22/08/2022,10008654,116.68, TESCO STORES 5999,GROCERIES,Health and Wellbeing,Provisions,A41006,
http://opendatacommunities.org/id/london-borough-council/sutton,London Borough of Sutton,16/08/2022,10008654,16.20, SAINSBURYS S/MKTS,GROCERIES,Health and Wellbeing,Provisions,A41006,
http://opendatacommunities.org/id/london-borough-council/sutton,London Borough of Sutton,15/08/2022,10008654,63.24, TESCO STORES 5999,GROCERIES,Health and Wellbeing,Provisions,A41006,
http://opendatacommunities.org/id/london-borough-council/sutton,London Borough of Sutton,08/08/2022,10008654,113.38, TESCO STORES 5999,GROCERIES,Health and Wellbeing,Provisions,A41006,
http://opendatacommunities.org/id/london-borough-council/sutton,London Borough of Sutton,04/08/2022,10008654,16.05, SAINSBURYS S/MKTS,GROCERIES,Health and Wellbeing,Provisions,A41006,
http://opendatacommunities.org/id/london-borough-council/sutton,London Borough of Sutton,01/08/2022,10008654,63.28, TESCO STORES 5999,GROCERIES,Health and Wellbeing,Provisions,A41006,
http://opendatacommunities.org/id/london-borough-council/sutton,London Borough of Sutton,21/08/2022,10008654,3.45, SUPERDRUG STORES PLC,REFRESHMENTS FOR CULTURAL IMPACT AWARD FILMING EVENT,Health and Wellbeing,Catering,A41000,
http://opendatacommunities.org/id/london-borough-council/sutton,London Borough of Sutton,19/08/2022,10008654,41.22, FREEDOM CAFFE LTD,REFRESHMENTS FOR EVENT,Health and Wellbeing,Catering,A41000,
http://opendatacommunities.org/id/london-borough-council/sutton,London Borough of Sutton,17/08/2022,10008654,5.50, FILLINGS LIMITED,REFRESHMENTS FOR SOUTH ASIAN HERITAGE MONTH EVENT,Health and Wellbeing,Catering,A41000,
http://opendatacommunities.org/id/london-borough-council/sutton,London Borough of Sutton,17/08/2022,10008654,17.45, ATOZ FRESH SUTTON LTD,REFRESHMENTS FOR SOUTH ASIAN HERITAGE MONTH EVENT,Health and Wellbeing,Catering Contract - Frozen Meals,A41001,
http://opendatacommunities.org/id/london-borough-council/sutton,London Borough of Sutton,27/07/2022,10008654,74.48, PREMCREST LTD,PERIOD PRODUCTS,Health and Wellbeing,Equipment And Materials Purchase,A40000,
http://opendatacommunities.org/id/london-borough-council/sutton,London Borough of Sutton,23/08/2022,10008654,1.26, EB  REFUND TO BUYER,EVENT REFUND FEE,Health and Wellbeing,Equipment And Materials Purchase,A40000,
http://opendatacommunities.org/id/london-borough-council/sutton,London Borough of Sutton,23/08/2022,10008654,1.26, EB  REFUND TO BUYER,EVENT REFUND FEE,Health and Wellbeing,Equipment And Materials Purchase,A40000,
http://opendatacommunities.org/id/london-borough-council/sutton,London Borough of Sutton,23/08/2022,10008654,3.78, EB  REFUND TO BUYER,EVENT REFUND ADMIN FREE,Health and Wellbeing,Equipment And Materials Purchase,A40000,
http://opendatacommunities.org/id/london-borough-council/sutton,London Borough of Sutton,17/08/2022,10008654,5.00, ASDA STORES,CUTLERY FOR SOUTH ASIAN HERITAGE MONTH EVENT,Health and Wellbeing,Catering,A41000,
http://opendatacommunities.org/id/london-borough-council/sutton,London Borough of Sutton,27/07/2022,10008654,4.46, FACEBK 8AXGMG7KE2,DIGITAL COMMS,Health and Wellbeing,Publicity,A44266,
http://opendatacommunities.org/id/london-borough-council/sutton,London Borough of Sutton,26/07/2022,10008654,4.52, AMZNMKTPLACE,"SPLIT - A4 BROWN CARD STOCK X 20 SHEETS, 240GSM (297MM X 210MM) - STELLA CRAFTS (100%)",Health and Wellbeing,Arts Programme,A44286,
http://opendatacommunities.org/id/london-borough-council/sutton,London Borough of Sutton,23/08/2022,10008654,1.26, EB  REFUND TO BUYER,EVENT REFUND FEE,Health and Wellbeing,Equipment And Materials Purchase,A40000,
http://opendatacommunities.org/id/london-borough-council/sutton,London Borough of Sutton,18/08/2022,10008654,15.63, AMZNMKTPLACE,"SPLIT - SCOLA REINFORCED AIR DRYING MODELLING CLAY (STONE), 12.5KG (100%)",Health and Wellbeing,Equipment And Materials Purchase,A40000,
http://opendatacommunities.org/id/london-borough-council/sutton,London Borough of Sutton,11/08/2022,10008654,34.96, AMZNMKTPLACE AMAZON.CO,RESOURCES FOR CLINICS AND OUTREACH EVENTS,Health and Wellbeing,Agency Staff - Other,A10505,
http://opendatacommunities.org/id/london-borough-council/sutton,London Borough of Sutton,21/08/2022,10008654,55.96, AMZNMKTPLACE AMAZON.CO,PAPER BAGS FOR COMMUNITY HEALTH PROJECTS,Health and Wellbeing,Other Supplies & Services,A44291,
http://opendatacommunities.org/id/london-borough-council/sutton,London Borough of Sutton,14/08/2022,10008654,12.82, AMZNMKTPLACE,"SPLIT - WHAM NON-STICK BAKING TRAY (SET OF 3 (32X23X1.5 CM)),F35 (100%)",Resources,Miscellaneous Expenses,A49000,
http://opendatacommunities.org/id/london-borough-council/sutton,London Borough of Sutton,09/08/2022,10008654,10.00, B & Q 1191,HOSE ATTACHMENT,Health and Wellbeing,Miscellaneous Expenses,A49000,
http://opendatacommunities.org/id/london-borough-council/sutton,London Borough of Sutton,03/08/2022,10008654,8.32, SPOTIFY P1CECB7829,MUSIC FOR WEDDINGS,Health and Wellbeing,Miscellaneous Expenses,A49000,
http://opendatacommunities.org/id/london-borough-council/sutton,London Borough of Sutton,03/08/2022,10008654,6.33, TESCO STORE 3235,TISSUES AND ANTI BAC WIPES,Health and Wellbeing,Miscellaneous Expenses,A49000,
http://opendatacommunities.org/id/london-borough-council/sutton,London Borough of Sutton,17/08/2022,10008654,31.00, WILKO.COM,GARDEN HOSE SET & BIRD BATHS FOR THE REGISTER OFFICE GARDEN,Health and Wellbeing,Miscellaneous Expenses,A49000,
http://opendatacommunities.org/id/london-borough-council/sutton,London Borough of Sutton,08/08/2022,10008654,19.99, AMZNMKTPLACE AMAZON.CO,EQUIPMENT NEEDED FOR BUSINESS SUPPORT OFFICERS (100%),Peoples Services,Miscellaneous Expenses,A49000,
http://opendatacommunities.org/id/london-borough-council/sutton,London Borough of Sutton,08/08/2022,10008654,79.96, AMZNMKTPLACE AMAZON.CO,EQUIPMENT NEEDED FOR BUSINESS SUPPORT OFFICERS (100%),Peoples Services,Miscellaneous Expenses,A49000,
http://opendatacommunities.org/id/london-borough-council/sutton,London Borough of Sutton,17/08/2022,10008654,4.99, AMZNMKTPLACE,SPLIT - NEW HORRIZON - MOUSE MAT BLACK ANTI-SLIP COMFORT MOUSE PAD MAT WITH GEL FOAM REST WRIST SUPPORT FOR PC LAPTOP - COMPATIBLE WITH LASER AND OPTICAL MICE (100%),Peoples Services,Client Care/Assistance,A61011,
http://opendatacommunities.org/id/london-borough-council/sutton,London Borough of Sutton,05/08/2022,10008654,6.55, FIGMA ANNUAL RENEWAL,SOFTWARE FOR DIGITAL DESIGN COMMUNITY,Resources,IT Software Maintenance,A45045,
http://opendatacommunities.org/id/london-borough-council/sutton,London Borough of Sutton,04/08/2022,10008654,238.04, FIGMA ANNUAL RENEWAL,SOFTWARE FOR DIGITAL DESIGN COMMUNITY,Resources,IT Software Maintenance,A45045,
http://opendatacommunities.org/id/london-borough-council/sutton,London Borough of Sutton,03/08/2022,10008654,10.67, Otter.ai subscription,Otter.ai subscription,Resources,Publicity,A44266,
http://opendatacommunities.org/id/london-borough-council/sutton,London Borough of Sutton,14/08/2022,10008654,382.14, MAILCHIMP,MONTHLY SUBSCRIPTION (LBS),Resources,Publicity,A44266,
http://opendatacommunities.org/id/london-borough-council/sutton,London Borough of Sutton,21/08/2022,10008654,234.93, MAILCHIMP,MONTHLY SUBSCRIPTION (LBS),Resources,Publicity,A44266,
http://opendatacommunities.org/id/london-borough-council/sutton,London Borough of Sutton,05/08/2022,10008654,20.00, TFL OYSTER AUTO TOPUP,CL&G,Resources,"Grants, Contributions & Donations",A47005,
http://opendatacommunities.org/id/london-borough-council/sutton,London Borough of Sutton,03/08/2022,10008654,112.95, ARGOS LTD,CL&G,Resources,"Grants, Contributions & Donations",A47005,
http://opendatacommunities.org/id/london-borough-council/sutton,London Borough of Sutton,03/08/2022,10008654,308.95, ARGOS LTD,CL&G,Resources,"Grants, Contributions & Donations",A47005,
http://opendatacommunities.org/id/london-borough-council/sutton,London Borough of Sutton,02/08/2022,10008654,208.95, ARGOS LTD,CL&G,Resources,"Grants, Contributions & Donations",A47005,
http://opendatacommunities.org/id/london-borough-council/sutton,London Borough of Sutton,02/08/2022,10008654,505.00, ARGOS LTD,CL&G,Resources,"Grants, Contributions & Donations",A47005,
http://opendatacommunities.org/id/london-borough-council/sutton,London Borough of Sutton,02/08/2022,10008654,265.00, ARGOS LTD,CL&G,Resources,"Grants, Contributions & Donations",A47005,
http://opendatacommunities.org/id/london-borough-council/sutton,London Borough of Sutton,01/08/2022,10008654,190.00, ARGOS LTD,CL&G,Resources,"Grants, Contributions & Donations",A47005,
http://opendatacommunities.org/id/london-borough-council/sutton,London Borough of Sutton,01/08/2022,10008654,260.00, ARGOS LTD,CL&G,Resources,"Grants, Contributions & Donations",A47005,
http://opendatacommunities.org/id/london-borough-council/sutton,London Borough of Sutton,01/08/2022,10008654,210.00, ARGOS LTD,CL&G,Resources,"Grants, Contributions & Donations",A47005,
http://opendatacommunities.org/id/london-borough-council/sutton,London Borough of Sutton,01/08/2022,10008654,500.00, ARGOS LTD,CL&G,Resources,"Grants, Contributions & Donations",A47005,
http://opendatacommunities.org/id/london-borough-council/sutton,London Borough of Sutton,30/07/2022,10008654,20.00, OYSTER BUS AUTOLOAD,CL&G,Resources,"Grants, Contributions & Donations",A47005,
http://opendatacommunities.org/id/london-borough-council/sutton,London Borough of Sutton,29/07/2022,10008654,250.00, ARGOS LTD,CL&G,Resources,"Grants, Contributions & Donations",A47005,
http://opendatacommunities.org/id/london-borough-council/sutton,London Borough of Sutton,29/07/2022,10008654,333.95, ARGOS LTD,CL&G,Resources,"Grants, Contributions & Donations",A47005,
http://opendatacommunities.org/id/london-borough-council/sutton,London Borough of Sutton,27/07/2022,10008654,283.95, ARGOS LTD,CL&G,Resources,"Grants, Contributions & Donations",A47005,
http://opendatacommunities.org/id/london-borough-council/sutton,London Borough of Sutton,26/07/2022,10008654,265.00, ARGOS LTD,CL&G,Resources,"Grants, Contributions & Donations",A47005,
http://opendatacommunities.org/id/london-borough-council/sutton,London Borough of Sutton,25/07/2022,10008654,418.95, ARGOS LTD,CL&G,Resources,"Grants, Contributions & Donations",A47005,
http://opendatacommunities.org/id/london-borough-council/sutton,London Borough of Sutton,24/08/2022,10008654,235.00, ARGOS LTD,CL&G,Resources,"Grants, Contributions & Donations",A47005,
http://opendatacommunities.org/id/london-borough-council/sutton,London Borough of Sutton,24/08/2022,10008654,558.95, ARGOS LTD,CL&G,Resources,"Grants, Contributions & Donations",A47005,
http://opendatacommunities.org/id/london-borough-council/sutton,London Borough of Sutton,24/08/2022,10008654,235.00, ARGOS LTD,CL&G,Resources,"Grants, Contributions & Donations",A47005,
http://opendatacommunities.org/id/london-borough-council/sutton,London Borough of Sutton,24/08/2022,10008654,-219.00, ARGOS LTD,CL&G,Resources,"Grants, Contributions & Donations",A47005,
http://opendatacommunities.org/id/london-borough-council/sutton,London Borough of Sutton,23/08/2022,10008654,522.95, ARGOS LTD,CL&G,Resources,"Grants, Contributions & Donations",A47005,
http://opendatacommunities.org/id/london-borough-council/sutton,London Borough of Sutton,23/08/2022,10008654,577.95, ARGOS LTD,CL&G,Resources,"Grants, Contributions & Donations",A47005,
http://opendatacommunities.org/id/london-borough-council/sutton,London Borough of Sutton,22/08/2022,10008654,527.95, ARGOS LTD,CL&G,Resources,"Grants, Contributions & Donations",A47005,
http://opendatacommunities.org/id/london-borough-council/sutton,London Borough of Sutton,19/08/2022,10008654,396.95, ARGOS LTD,CL&G,Resources,"Grants, Contributions & Donations",A47005,
http://opendatacommunities.org/id/london-borough-council/sutton,London Borough of Sutton,16/08/2022,10008654,285.00, ARGOS LTD,CL&G,Resources,"Grants, Contributions & Donations",A47005,
http://opendatacommunities.org/id/london-borough-council/sutton,London Borough of Sutton,16/08/2022,10008654,101.95, ARGOS LTD,CL&G,Resources,"Grants, Contributions & Donations",A47005,
http://opendatacommunities.org/id/london-borough-council/sutton,London Borough of Sutton,15/08/2022,10008654,235.00, ARGOS LTD,CL&G,Resources,"Grants, Contributions & Donations",A47005,
http://opendatacommunities.org/id/london-borough-council/sutton,London Borough of Sutton,15/08/2022,10008654,285.00, ARGOS LTD,CL&G,Resources,"Grants, Contributions & Donations",A47005,
http://opendatacommunities.org/id/london-borough-council/sutton,London Borough of Sutton,15/08/2022,10008654,485.00, ARGOS LTD,CL&G,Resources,"Grants, Contributions & Donations",A47005,
http://opendatacommunities.org/id/london-borough-council/sutton,London Borough of Sutton,15/08/2022,10008654,235.00, ARGOS LTD,CL&G,Resources,"Grants, Contributions & Donations",A47005,
http://opendatacommunities.org/id/london-borough-council/sutton,London Borough of Sutton,13/08/2022,10008654,20.00, OYSTER BUS AUTOLOAD,CL&G,Resources,"Grants, Contributions & Donations",A47005,
http://opendatacommunities.org/id/london-borough-council/sutton,London Borough of Sutton,13/08/2022,10008654,-220.00, ARGOS LTD,CL&G,Resources,"Grants, Contributions & Donations",A47005,
http://opendatacommunities.org/id/london-borough-council/sutton,London Borough of Sutton,11/08/2022,10008654,-165.00, ARGOS LTD,CL&G,Resources,"Grants, Contributions & Donations",A47005,
http://opendatacommunities.org/id/london-borough-council/sutton,London Borough of Sutton,11/08/2022,10008654,437.95, ARGOS LTD,CL&G,Resources,"Grants, Contributions & Donations",A47005,
http://opendatacommunities.org/id/london-borough-council/sutton,London Borough of Sutton,11/08/2022,10008654,198.00, ARGOS LTD,CL&G,Resources,"Grants, Contributions & Donations",A47005,
http://opendatacommunities.org/id/london-borough-council/sutton,London Borough of Sutton,10/08/2022,10008654,241.95, ARGOS LTD,CL&G,Resources,"Grants, Contributions & Donations",A47005,
http://opendatacommunities.org/id/london-borough-council/sutton,London Borough of Sutton,09/08/2022,10008654,268.95, ARGOS LTD,CL&G,Resources,"Grants, Contributions & Donations",A47005,
http://opendatacommunities.org/id/london-borough-council/sutton,London Borough of Sutton,08/08/2022,10008654,246.95, ARGOS LTD,CL&G,Resources,"Grants, Contributions & Donations",A47005,
http://opendatacommunities.org/id/london-borough-council/sutton,London Borough of Sutton,18/08/2022,10008654,300.00, WWW.BICS.ORG.UK,"BICS WORK ALLOCATION TRAINING FOR ""REDACTED - PERSONAL DATA""",Resources,Contingency,A49001,
http://opendatacommunities.org/id/london-borough-council/sutton,London Borough of Sutton,14/08/2022,10008654,57.36, AMZNMKTPLACE,SIGN HOLDERS AND TAPE FOR LONDON CANCER HUB INNOVATION GATEWAY,Resources,Contingency,A49001,
http://opendatacommunities.org/id/london-borough-council/sutton,London Borough of Sutton,12/08/2022,10008654,41.65, AMZNMKTPLACE,"DESK FANS FOR""REDACTED - PERSONAL DATA"" TEAM DUE TO HOT WEATHER.",Resources,Contingency,A49001,
http://opendatacommunities.org/id/london-borough-council/sutton,London Borough of Sutton,06/08/2022,10008654,21.47, AMZNMKTPLACE AMAZON.CO,CABLE TIES FOR DESKS,Resources,Contingency,A49001,
http://opendatacommunities.org/id/london-borough-council/sutton,London Borough of Sutton,01/08/2022,10008654,107.50, AO RETAIL LIMITED,FRIDGE FOR HOSPITAL PATHWAY TEAM AT ST HELIER,Resources,Contingency,A49001,
http://opendatacommunities.org/id/london-borough-council/sutton,London Borough of Sutton,26/07/2022,10008654,202.00, AMZNMKTPLACE,KEY CABINET FOR KEYS (NEED TO RETURN OTHER ONE WHEN IT EVENTUALLY SHOWS UP!.,Resources,Contingency,A49001,
http://opendatacommunities.org/id/london-borough-council/sutton,London Borough of Sutton,26/07/2022,10008654,58.32, PAYPAL  999 DAY,"999 FLAG REQUESTED BY ""REDACTED - PERSONAL DATA""",Resources,Contingency,A49001,
http://opendatacommunities.org/id/london-borough-council/sutton,London Borough of Sutton,27/07/2022,10008654,40.00, WP-COURTEL COMMUNI,SUBSCRIPTION ANNUAL,Resources,Subscriptions,A47010,
http://opendatacommunities.org/id/london-borough-council/sutton,London Borough of Sutton,04/08/2022,10008654,0.29, foreign exchange,foreign exchange,Development Growth and Regeneration,Publicity,A44266,
http://opendatacommunities.org/id/london-borough-council/sutton,London Borough of Sutton,21/08/2022,10008654,12.00, FACEBK 39MH5H7AY2,advertising,Development Growth and Regeneration,Publicity,A44266,
http://opendatacommunities.org/id/london-borough-council/sutton,London Borough of Sutton,19/08/2022,10008654,7.00, FACEBK 58NPMFBAY2,advertising,Development Growth and Regeneration,Publicity,A44266,
http://opendatacommunities.org/id/london-borough-council/sutton,London Borough of Sutton,17/08/2022,10008654,7.00, FACEBK AKYZKHTAY2,advertising,Development Growth and Regeneration,Publicity,A44266,
http://opendatacommunities.org/id/london-borough-council/sutton,London Borough of Sutton,16/08/2022,10008654,7.00, FACEBK ADFLFGPAY2,advertising,Development Growth and Regeneration,Publicity,A44266,
http://opendatacommunities.org/id/london-borough-council/sutton,London Borough of Sutton,16/08/2022,10008654,7.00, FACEBK PD8JZGFAY2,advertising,Development Growth and Regeneration,Publicity,A44266,
http://opendatacommunities.org/id/london-borough-council/sutton,London Borough of Sutton,09/08/2022,10008654,-0.06, CLIPCHAMP.COM,MONTHLY SUBSCRIPTION (LBS),Development Growth and Regeneration,Publicity,A44266,
http://opendatacommunities.org/id/london-borough-council/sutton,London Borough of Sutton,08/08/2022,10008654,-2.00, CLIPCHAMP.COM,MONTHLY SUBSCRIPTION (LBS),Development Growth and Regeneration,Publicity,A44266,
http://opendatacommunities.org/id/london-borough-council/sutton,London Borough of Sutton,25/08/2022,10008654,128.84, WWW.PRESCO-UK.COM,PERMIT HOLDERS,Environment Housing and Neighbourhoods,Stationery,A43015,
http://opendatacommunities.org/id/london-borough-council/sutton,London Borough of Sutton,08/08/2022,10008654,5.50, WICKES CROYDON COLONNA,2.5L PAINT KETTLES X4 FOR COMMUNITY PAYBACK,Environment Housing and Neighbourhoods,Community Initiatives,A44288,
http://opendatacommunities.org/id/london-borough-council/sutton,London Borough of Sutton,08/08/2022,10008654,127.42, WICKES CROYDON,"PAINT, ROLLERS, BRUSHES ETC. FOR COMMUNITY PAYBACK",Environment Housing and Neighbourhoods,Community Initiatives,A44288,
http://opendatacommunities.org/id/london-borough-council/sutton,London Borough of Sutton,10/08/2022,10008654,96.00, VIRTUAL COLLEGE LIMITE,PAYMENT FOR VIRTUAL COLLEGE FOR YOUNG PERSON,Peoples Services,Training - Professional Qualification,A15024,
http://opendatacommunities.org/id/london-borough-council/sutton,London Borough of Sutton,11/08/2022,10008654,109.00, ORANGESQUIRRELEVENTS,EVENT,Peoples Services,Equipment And Materials Purchase,A40000,
http://opendatacommunities.org/id/london-borough-council/sutton,London Borough of Sutton,08/08/2022,10008654,225.00, OASIS CHILDRENS VENTUR,ITEMS NEEDED FOR THE QUAD,Peoples Services,Miscellaneous Expenses,A49000,
http://opendatacommunities.org/id/london-borough-council/sutton,London Borough of Sutton,24/08/2022,10008654,21.83, HOLLYWOOD BOWL,ACTIVITY NEEDED FOR A YOUNG PERSON,Peoples Services,Client Care/Assistance,A61011,
http://opendatacommunities.org/id/london-borough-council/sutton,London Borough of Sutton,04/08/2022,10008654,18.33, SUTTON REGISTER OFFICE,BIRTH CERTIFICATE REQUIRED FOR LEGAL REASONS,Peoples Services,Equipment And Materials Purchase,A40000,
http://opendatacommunities.org/id/london-borough-council/sutton,London Borough of Sutton,12/08/2022,10008654,3.33, CHESSINGTON ADVENTURES,SUPERVISED CONTACT WITH A YOUNG PERSON - CAR PARKING PAYMENT,Peoples Services,Equipment And Materials Purchase,A40000,
http://opendatacommunities.org/id/london-borough-council/sutton,London Borough of Sutton,12/08/2022,10008654,47.50, CHESSINGTON ADVENTURES,SUPERVISED CONTACT WITH A YOUNG PERSON,Peoples Services,Equipment And Materials Purchase,A40000,
http://opendatacommunities.org/id/london-borough-council/sutton,London Borough of Sutton,09/08/2022,10008654,27.50, AMZNBUSINESS 668FY5JQ5,ITEMS NEEDED FOR THE QUAD (100%),Peoples Services,Miscellaneous Expenses,A49000,
http://opendatacommunities.org/id/london-borough-council/sutton,London Borough of Sutton,02/08/2022,10008654,33.12, BOOTS UK ECOMM,ITEMS REQUESTED FOR THE QUAD BUILDING,Peoples Services,Miscellaneous Expenses,A49000,
http://opendatacommunities.org/id/london-borough-council/sutton,London Borough of Sutton,01/08/2022,10008654,12.99, AMZNMKTPLACE,ITEMS NEEDED FOR THE LEAVING CARE PERSON (100%),Peoples Services,Miscellaneous Expenses,A49000,
http://opendatacommunities.org/id/london-borough-council/sutton,London Borough of Sutton,09/08/2022,10008654,8.40, AMZNBUSINESS HB8F57IW5,ITEMS NEEDED FOR THE QUAD (105.26%),Peoples Services,Miscellaneous Expenses,A49000,
http://opendatacommunities.org/id/london-borough-council/sutton,London Borough of Sutton,09/08/2022,10008654,-0.42, AMZNBUSINESS HB8F57IW5,BALANCING ENTRY AMOUNT (-15.78%),Peoples Services,Miscellaneous Expenses,A49000,
http://opendatacommunities.org/id/london-borough-council/sutton,London Borough of Sutton,09/08/2022,10008654,25.00, AMZNBUSINESS BI6D091L5,ITEMS NEEDED FOR THE QUAD (70.15%),Peoples Services,Miscellaneous Expenses,A49000,
http://opendatacommunities.org/id/london-borough-council/sutton,London Borough of Sutton,09/08/2022,10008654,11.20, AMZNBUSINESS BI6D091L5,"SPLIT - FLO ORGANIC BAMBOO SANITARY PADS WITH WINGS - SILKY SOFT, ULTRA- ABSORBENT BIODEGRADABLE - ULTRA-THIN DAY PADS PACK - 16 COUNT (31.43%)",Peoples Services,Miscellaneous Expenses,A49000,
http://opendatacommunities.org/id/london-borough-council/sutton,London Borough of Sutton,09/08/2022,10008654,-0.56, AMZNBUSINESS BI6D091L5,BALANCING ENTRY AMOUNT (-4.72%),Peoples Services,Miscellaneous Expenses,A49000,
http://opendatacommunities.org/id/london-borough-council/sutton,London Borough of Sutton,01/08/2022,10008654,153.96, WWW.RUSSUM.CO.UK,ORDER FROM RUSSEMS,Peoples Services,Miscellaneous Expenses,A49000,
http://opendatacommunities.org/id/london-borough-council/sutton,London Borough of Sutton,08/08/2022,10008654,8.00, PHOTO ME INTERNATIONAL,"""REDACTED - PERSONAL DATA""",Peoples Services,Miscellaneous Expenses,A49000,
http://opendatacommunities.org/id/london-borough-council/sutton,London Borough of Sutton,18/08/2022,10008654,13.48, SUPERDRUG STORES PLC,"""REDACTED - PERSONAL DATA"" VITAMINS",Peoples Services,Miscellaneous Expenses,A49000,
http://opendatacommunities.org/id/london-borough-council/sutton,London Borough of Sutton,01/08/2022,10008654,18.65, AMZNMKTPLACE,ITEM NEEDED FOR A CLIENT A49000 G03040 9999 AMAZON (100%),Peoples Services,Miscellaneous Expenses,A49000,
http://opendatacommunities.org/id/london-borough-council/sutton,London Borough of Sutton,10/08/2022,10008654,120.00, DUNELM SOFTFURNISHINGS,ITEMS NEEDED FOR A LEAVING CARE YOUNG PERSON,Peoples Services,Set Up Costs - Children Leaving Care,A61021,
http://opendatacommunities.org/id/london-borough-council/sutton,London Borough of Sutton,15/08/2022,10008654,87.50, IKEA LTD SHOP ONLINE,SETTING UP ITEMS FOR A YOUNG PERSON,Peoples Services,Set Up Costs - Children Leaving Care,A61021,
http://opendatacommunities.org/id/london-borough-council/sutton,London Borough of Sutton,12/08/2022,10008654,60.00, DUNELM SOFTFURNISHINGS,SETTING UP COSTS FOR LEAVING CARE YOUNG PERSON,Peoples Services,Set Up Costs - Children Leaving Care,A61021,
http://opendatacommunities.org/id/london-borough-council/sutton,London Borough of Sutton,12/08/2022,10008654,165.83, IKEA LTD SHOP ONLINE,SETTING UP COSTS FOR LEAVING CARE YOUNG PERSON,Peoples Services,Set Up Costs - Children Leaving Care,A61021,
http://opendatacommunities.org/id/london-borough-council/sutton,London Borough of Sutton,22/08/2022,10008654,361.67, IKEA LTD SHOP ONLINE,SET UP ALLOWANCE,Peoples Services,Set Up Costs - Children Leaving Care,A61021,
http://opendatacommunities.org/id/london-borough-council/sutton,London Borough of Sutton,22/08/2022,10008654,124.99, BENSONSFORBEDSRETAIL,SET UP ALLOWANCE,Peoples Services,Set Up Costs - Children Leaving Care,A61021,
http://opendatacommunities.org/id/london-borough-council/sutton,London Borough of Sutton,15/08/2022,10008654,45.00, IKEA LTD SHOP ONLINE,SETTING UP COSTS FOR A LEAVING CARE PERSON,Peoples Services,Set Up Costs - Children Leaving Care,A61021,
http://opendatacommunities.org/id/london-borough-council/sutton,London Borough of Sutton,23/08/2022,10008654,166.66, ARGOS LTD,SET UP ALLOWANCE,Peoples Services,Set Up Costs - Children Leaving Care,A61021,
http://opendatacommunities.org/id/london-borough-council/sutton,London Borough of Sutton,23/08/2022,10008654,-50.95, DUNELM SOFTFURNISHINGS,REFUND FOR AN ITEM NO LONGER REQUIRED,Peoples Services,Set Up Costs - Children Leaving Care,A61021,
http://opendatacommunities.org/id/london-borough-council/sutton,London Borough of Sutton,23/08/2022,10008654,-19.00, IKEA LTD SHOP ONLINE,REFUND FOR AN ITEM NO LONGER REQUIRED,Peoples Services,Set Up Costs - Children Leaving Care,A61021,
http://opendatacommunities.org/id/london-borough-council/sutton,London Borough of Sutton,15/08/2022,10008654,42.46, DUNELM SOFTFURNISHINGS,SETTING UP COST FOR LEAVING CARE PERSON,Peoples Services,Set Up Costs - Children Leaving Care,A61021,
http://opendatacommunities.org/id/london-borough-council/sutton,London Borough of Sutton,22/08/2022,10008654,117.06, EASYJET,FLIGHT NEEDED FOR A SOCIAL WORKER VISIT,Peoples Services,Non-Staff Travel Subsistence & Training,A46006,
http://opendatacommunities.org/id/london-borough-council/sutton,London Borough of Sutton,09/08/2022,10008654,52.44, AMZNMKTPLACE AMAZON.CO,"""REDACTED - PERSONAL DATA"" ACTIVITIES",Peoples Services,Miscellaneous Expenses,A49000,
http://opendatacommunities.org/id/london-borough-council/sutton,London Borough of Sutton,29/07/2022,10008654,33.99, EBAY O 20-08916-77342,ITEM REQUIRED FOR A LEAVING CARE CHILD,Peoples Services,Miscellaneous Expenses,A49000,
http://opendatacommunities.org/id/london-borough-council/sutton,London Borough of Sutton,04/08/2022,10008654,-7.19, COSTCO ONLINE UK LIMIT,REFUND GROCERIES FOR WILLOW RISE CHILDREN'S HOME,Peoples Services,Miscellaneous Expenses,A49000,
http://opendatacommunities.org/id/london-borough-council/sutton,London Borough of Sutton,28/07/2022,10008654,11.58, AMZNMKTPLACE AMAZON.CO,"SPLIT - DRAPER 31069 HEAD PLASTIC LEAF RAKE, 550MM , BLUE (100%)",Peoples Services,Miscellaneous Expenses,A49000,
http://opendatacommunities.org/id/london-borough-council/sutton,London Borough of Sutton,28/07/2022,10008654,8.32, AMZNMKTPLACE AMAZON.CO,"SPLIT - NEWMAN & COLE OUTDOOR SWEEPING BRUSH STIFF YARD PATIO GARDEN BROOM NATURAL BASSINE BRISTLE FITTED WITH WOODEN HANDLE (UNASSEMBLED, PACK OF 1) (100%)",Peoples Services,Miscellaneous Expenses,A49000,
http://opendatacommunities.org/id/london-borough-council/sutton,London Borough of Sutton,27/07/2022,10008654,4.99, AMZNMKTPLACE AMAZON.CO,"SPLIT - LONGZON NAIL CLIPPERS, 2 PACK NAIL CLIPPER SET STAINLESS STEEL NAIL CUTTER FINGERNAILS TOENAILS THICK NAILS KIT FOR MEN&WOMEN (100%)",Peoples Services,Miscellaneous Expenses,A49000,
http://opendatacommunities.org/id/london-borough-council/sutton,London Borough of Sutton,21/08/2022,10008654,11.99, AMZNMKTPLACE,ITEMS NEEDED FOR WILLOW RISE CHILDRENS HOME (100%),Peoples Services,Miscellaneous Expenses,A49000,
http://opendatacommunities.org/id/london-borough-council/sutton,London Borough of Sutton,21/08/2022,10008654,17.99, AMZNMKTPLACE,ITEMS NEEDED FOR WILLOW RISE CHILDRENS HOME (100%),Peoples Services,Miscellaneous Expenses,A49000,
http://opendatacommunities.org/id/london-borough-council/sutton,London Borough of Sutton,21/08/2022,10008654,6.98, AMZNMKTPLACE,ITEMS NEEDED FOR WILLOW RISE CHILDRENS HOME (100%),Peoples Services,Miscellaneous Expenses,A49000,
http://opendatacommunities.org/id/london-borough-council/sutton,London Borough of Sutton,14/08/2022,10008654,6.79, AMZNMKTPLACE,ITEMS NEEDED FOR WILLOW RISE CHILDRENS HOME (100%),Peoples Services,Miscellaneous Expenses,A49000,
http://opendatacommunities.org/id/london-borough-council/sutton,London Borough of Sutton,14/08/2022,10008654,10.99, AMZNMKTPLACE,ITEM FOR A YOUNG PERSON AT WILLOW RISE CHILDRENS HOME (44%),Peoples Services,Miscellaneous Expenses,A49000,
http://opendatacommunities.org/id/london-borough-council/sutton,London Borough of Sutton,14/08/2022,10008654,13.99, AMZNMKTPLACE,"SPLIT - KEPLIN LARGE MICROFIBRE BEACH TOWELS FOR ADULTS & KIDS - YELLOW | ABSORBENT AND FAST DRYING TOWELS FOR TRAVEL, SWIMMING POOL, SUNBATHING MAT | COMPACT (56%)",Peoples Services,Miscellaneous Expenses,A49000,
http://opendatacommunities.org/id/london-borough-council/sutton,London Borough of Sutton,07/08/2022,10008654,29.99, AMZNMKTPLACE AMAZON.CO,ITEMS NEEDED FOR WILLOW RISE CHILDRENS HOME (100%),Peoples Services,Miscellaneous Expenses,A49000,
http://opendatacommunities.org/id/london-borough-council/sutton,London Borough of Sutton,10/08/2022,10008654,401.67, PARK HOLIDAYS UK L,HOLIDAY PAYMENT FOR WILLOW RISE CHILDRENS HOME YOUNG PEOPLE,Peoples Services,Miscellaneous Expenses,A49000,
http://opendatacommunities.org/id/london-borough-council/sutton,London Borough of Sutton,15/08/2022,10008654,23.83, TL&GN RAILWAY WEB,TRAIN TICKET FOR WILLOW RISE STAFF,Peoples Services,Miscellaneous Expenses,A49000,
http://opendatacommunities.org/id/london-borough-council/sutton,London Borough of Sutton,07/08/2022,10008654,44.74, AMZNMKTPLACE,MATERIAL (INK) FOR THE WILLOW RISE CHILDRENS HOME (100%),Peoples Services,Miscellaneous Expenses,A49000,
http://opendatacommunities.org/id/london-borough-council/sutton,London Borough of Sutton,04/08/2022,10008654,11.99, AMZNMKTPLACE,ITEMS NEEDED FOR WILLOW RISE CHILDRENS HOME (100%),Peoples Services,Miscellaneous Expenses,A49000,
http://opendatacommunities.org/id/london-borough-council/sutton,London Borough of Sutton,04/08/2022,10008654,9.87, AMZNMKTPLACE,ITEM FOR A YOUNG PERSON AT WILLOW RISE CHILDRENS HOME (100%),Peoples Services,Miscellaneous Expenses,A49000,
http://opendatacommunities.org/id/london-borough-council/sutton,London Borough of Sutton,04/08/2022,10008654,3.98, AMZNMKTPLACE,ITEM FOR A YOUNG PERSON AT WILLOW RISE CHILDRENS HOME (100%),Peoples Services,Miscellaneous Expenses,A49000,
http://opendatacommunities.org/id/london-borough-council/sutton,London Borough of Sutton,04/08/2022,10008654,27.98, AMZNMKTPLACE,ITEMS NEEDED FOR WILLOW RISE CHILDRENS HOME (100%),Peoples Services,Miscellaneous Expenses,A49000,
http://opendatacommunities.org/id/london-borough-council/sutton,London Borough of Sutton,04/08/2022,10008654,51.00, EVENTIM UK,EXPENDITURE FOR AN ACTIVITY FOR A YOUNG PERSON,Peoples Services,Miscellaneous Expenses,A49000,
http://opendatacommunities.org/id/london-borough-council/sutton,London Borough of Sutton,04/08/2022,10008654,88.16, ASDA GROCERIES ONLINE,GROCERIES FOR WILLOW RISE CHILDREN'S HOME,Peoples Services,Miscellaneous Expenses,A49000,
http://opendatacommunities.org/id/london-borough-council/sutton,London Borough of Sutton,04/08/2022,10008654,-5.99, COSTCO ONLINE UK LIMIT,REFUND GROCERIES FOR WILLOW RISE CHILDREN'S HOME,Peoples Services,Miscellaneous Expenses,A49000,
http://opendatacommunities.org/id/london-borough-council/sutton,London Borough of Sutton,04/08/2022,10008654,-11.98, COSTCO ONLINE UK LIMIT,REFUND GROCERIES FOR WILLOW RISE CHILDREN'S HOME,Peoples Services,Miscellaneous Expenses,A49000,
http://opendatacommunities.org/id/london-borough-council/sutton,London Borough of Sutton,04/08/2022,10008654,-9.49, COSTCO ONLINE UK LIMIT,REFUND GROCERIES FOR WILLOW RISE CHILDREN'S HOME,Peoples Services,Miscellaneous Expenses,A49000,
http://opendatacommunities.org/id/london-borough-council/sutton,London Borough of Sutton,04/08/2022,10008654,-2.89, COSTCO ONLINE UK LIMIT,REFUND GROCERIES FOR WILLOW RISE CHILDREN'S HOME,Peoples Services,Miscellaneous Expenses,A49000,
http://opendatacommunities.org/id/london-borough-council/sutton,London Borough of Sutton,04/08/2022,10008654,-3.46, COSTCO ONLINE UK LIMIT,REFUND GROCERIES FOR WILLOW RISE CHILDREN'S HOME,Peoples Services,Miscellaneous Expenses,A49000,
http://opendatacommunities.org/id/london-borough-council/sutton,London Borough of Sutton,04/08/2022,10008654,-7.39, COSTCO ONLINE UK LIMIT,REFUND GROCERIES FOR WILLOW RISE CHILDREN'S HOME,Peoples Services,Miscellaneous Expenses,A49000,
http://opendatacommunities.org/id/london-borough-council/sutton,London Borough of Sutton,04/08/2022,10008654,-7.99, COSTCO ONLINE UK LIMIT,REFUND GROCERIES FOR WILLOW RISE CHILDREN'S HOME,Peoples Services,Miscellaneous Expenses,A49000,
http://opendatacommunities.org/id/london-borough-council/sutton,London Borough of Sutton,04/08/2022,10008654,-4.49, COSTCO ONLINE UK LIMIT,REFUND GROCERIES FOR WILLOW RISE CHILDREN'S HOME,Peoples Services,Miscellaneous Expenses,A49000,
http://opendatacommunities.org/id/london-borough-council/sutton,London Borough of Sutton,04/08/2022,10008654,-5.19, COSTCO ONLINE UK LIMIT,REFUND GROCERIES FOR WILLOW RISE CHILDREN'S HOME,Peoples Services,Miscellaneous Expenses,A49000,
http://opendatacommunities.org/id/london-borough-council/sutton,London Borough of Sutton,04/08/2022,10008654,-5.49, COSTCO ONLINE UK LIMIT,REFUND GROCERIES FOR WILLOW RISE CHILDREN'S HOME,Peoples Services,Miscellaneous Expenses,A49000,
http://opendatacommunities.org/id/london-borough-council/sutton,London Borough of Sutton,04/08/2022,10008654,-4.89, COSTCO ONLINE UK LIMIT,REFUND GROCERIES FOR WILLOW RISE CHILDREN'S HOME,Peoples Services,Miscellaneous Expenses,A49000,
http://opendatacommunities.org/id/london-borough-council/sutton,London Borough of Sutton,04/08/2022,10008654,-5.49, COSTCO ONLINE UK LIMIT,REFUND GROCERIES FOR WILLOW RISE CHILDREN'S HOME,Peoples Services,Miscellaneous Expenses,A49000,
http://opendatacommunities.org/id/london-borough-council/sutton,London Borough of Sutton,04/08/2022,10008654,-6.99, COSTCO ONLINE UK LIMIT,REFUND GROCERIES FOR WILLOW RISE CHILDREN'S HOME,Peoples Services,Miscellaneous Expenses,A49000,
http://opendatacommunities.org/id/london-borough-council/sutton,London Borough of Sutton,04/08/2022,10008654,-6.59, COSTCO ONLINE UK LIMIT,REFUND GROCERIES FOR WILLOW RISE CHILDREN'S HOME,Peoples Services,Miscellaneous Expenses,A49000,
http://opendatacommunities.org/id/london-borough-council/sutton,London Borough of Sutton,04/08/2022,10008654,-15.79, COSTCO ONLINE UK LIMIT,REFUND GROCERIES FOR WILLOW RISE CHILDREN'S HOME,Peoples Services,Miscellaneous Expenses,A49000,
http://opendatacommunities.org/id/london-borough-council/sutton,London Borough of Sutton,04/08/2022,10008654,-4.89, COSTCO ONLINE UK LIMIT,REFUND GROCERIES FOR WILLOW RISE CHILDREN'S HOME,Peoples Services,Miscellaneous Expenses,A49000,
http://opendatacommunities.org/id/london-borough-council/sutton,London Borough of Sutton,04/08/2022,10008654,-11.19, COSTCO ONLINE UK LIMIT,REFUND GROCERIES FOR WILLOW RISE CHILDREN'S HOME,Peoples Services,Miscellaneous Expenses,A49000,
http://opendatacommunities.org/id/london-borough-council/sutton,London Borough of Sutton,04/08/2022,10008654,-4.89, COSTCO ONLINE UK LIMIT,REFUND GROCERIES FOR WILLOW RISE CHILDREN'S HOME,Peoples Services,Miscellaneous Expenses,A49000,
http://opendatacommunities.org/id/london-borough-council/sutton,London Borough of Sutton,04/08/2022,10008654,-1.83, ASDA GROCERIES ONLINE,REFUND GROCERIES FOR WILLOW RISE CHILDREN'S HOME,Peoples Services,Miscellaneous Expenses,A49000,
http://opendatacommunities.org/id/london-borough-council/sutton,London Borough of Sutton,27/07/2022,10008654,13.33, AMZNMKTPLACE AMAZON.CO,"SPLIT - WOWSTAR KARAOKE WIRELESS MICROPHONE, BLUETOOTH HANDHELD MICROPHONES FOR KIDS ADULTS, KARAOKE MIC SPEAKER SINGING MACHINE WITH LED LIGHTS, HOME KTV PLA (159.84%)",Peoples Services,Miscellaneous Expenses,A49000,
http://opendatacommunities.org/id/london-borough-council/sutton,London Borough of Sutton,27/07/2022,10008654,-4.99, AMZNMKTPLACE AMAZON.CO,BALANCING ENTRY AMOUNT (-59.84%),Peoples Services,Miscellaneous Expenses,A49000,
http://opendatacommunities.org/id/london-borough-council/sutton,London Borough of Sutton,27/07/2022,10008654,-1.00, AMZNMKTPLACE AMAZON.CO,BALANCING ENTRY TAX (0%),Peoples Services,Miscellaneous Expenses,A49000,
http://opendatacommunities.org/id/london-borough-council/sutton,London Borough of Sutton,27/07/2022,10008654,8.32, AMZNMKTPLACE AMAZON.CO,SPLIT - NEWMAN AND COLE LARGE GARDEN DUSTPAN AND BRUSH SET - OUTDOOR DUST PAN SCOOP WITH STIFF HAND BRUSH (100%),Peoples Services,Miscellaneous Expenses,A49000,
http://opendatacommunities.org/id/london-borough-council/sutton,London Borough of Sutton,27/07/2022,10008654,13.33, AMZNMKTPLACE AMAZON.CO,"SPLIT - WOWSTAR KARAOKE WIRELESS MICROPHONE, BLUETOOTH HANDHELD MICROPHONES FOR KIDS ADULTS, KARAOKE MIC SPEAKER SINGING MACHINE WITH LED LIGHTS, HOME KTV PLA (267.11%)",Peoples Services,Miscellaneous Expenses,A49000,
http://opendatacommunities.org/id/london-borough-council/sutton,London Borough of Sutton,27/07/2022,10008654,-8.34, AMZNMKTPLACE AMAZON.CO,BALANCING ENTRY AMOUNT (-167.11%),Peoples Services,Miscellaneous Expenses,A49000,
http://opendatacommunities.org/id/london-borough-council/sutton,London Borough of Sutton,27/07/2022,10008654,-1.67, AMZNMKTPLACE AMAZON.CO,BALANCING ENTRY TAX (0%),Peoples Services,Miscellaneous Expenses,A49000,
http://opendatacommunities.org/id/london-borough-council/sutton,London Borough of Sutton,02/08/2022,10008654,-120.00, ARGOS LTD,ITEMS REQUESTED FOR A YOUNG PERSON,Peoples Services,Miscellaneous Expenses,A49000,
http://opendatacommunities.org/id/london-borough-council/sutton,London Borough of Sutton,02/08/2022,10008654,68.29, ARGOS LTD,ITEMS REQUESTED FOR A YOUNG PERSON,Peoples Services,Miscellaneous Expenses,A49000,
http://opendatacommunities.org/id/london-borough-council/sutton,London Borough of Sutton,02/08/2022,10008654,204.12, ARGOS LTD,ITEMS REQUESTED FOR A YOUNG PERSON,Peoples Services,Miscellaneous Expenses,A49000,
http://opendatacommunities.org/id/london-borough-council/sutton,London Borough of Sutton,22/08/2022,10008654,52.83, ARGOS LTD,SET UP ALLOWANCE,Peoples Services,Set Up Costs - Children Leaving Care,A61021,
http://opendatacommunities.org/id/london-borough-council/sutton,London Borough of Sutton,22/08/2022,10008654,10.79, ARGOS LTD,SET UP ALLOWANCE,Peoples Services,Set Up Costs - Children Leaving Care,A61021,
http://opendatacommunities.org/id/london-borough-council/sutton,London Borough of Sutton,23/08/2022,10008654,-99.00, DUNELM SOFTFURNISHINGS,REFUND FOR AN ITEM NO LONGER REQUIRED,Peoples Services,Set Up Costs - Children Leaving Care,A61021,
http://opendatacommunities.org/id/london-borough-council/sutton,London Borough of Sutton,17/08/2022,10008654,159.90, ZOOM.US 888-799-9666,SUBSCRIPTION NEEDED FOR TEAM MEETINGS,Peoples Services,Subscriptions,A47010,
http://opendatacommunities.org/id/london-borough-council/sutton,London Borough of Sutton,30/07/2022,10008654,159.90, ZOOM.US 888-799-9666,SUBSCRIPTION REQUIRED FOR A TEAM MEETING,Peoples Services,Subscriptions,A47010,
http://opendatacommunities.org/id/london-borough-council/sutton,London Borough of Sutton,09/08/2022,10008654,27.50, SUTTON REGISTER OFFICE,BIRTH CERTIFICATE REQUIRED,Peoples Services,Equipment And Materials Purchase,A40000,
http://opendatacommunities.org/id/london-borough-council/sutton,London Borough of Sutton,22/08/2022,10008654,20.00, OYSTER BUS AUTOLOAD,OYSTER CARD AUTO TOP UP PAYMENT,Peoples Services,Miscellaneous Expenses,A49000,
http://opendatacommunities.org/id/london-borough-council/sutton,London Borough of Sutton,26/07/2022,10008654,22.95, ARGOS LTD,ARGOS ORDER,Peoples Services,C.C.A Travel & Subsistance,A61010,
http://opendatacommunities.org/id/london-borough-council/sutton,London Borough of Sutton,11/08/2022,10008654,337.00, ARGOS LTD,ITEMS REQUESTED FOR A YOUNG PERSON,Peoples Services,Client Care/Assistance,A61011,
http://opendatacommunities.org/id/london-borough-council/sutton,London Borough of Sutton,10/08/2022,10008654,170.00, ARGOS LTD,PAYMENT FOR COT FOR YOUNG PERSON,Peoples Services,Client Care/Assistance,A61011,
http://opendatacommunities.org/id/london-borough-council/sutton,London Borough of Sutton,10/08/2022,10008654,50.95, ARGOS LTD,ITEMS REQUESTED FOR A YOUNG PERSON,Peoples Services,Client Care/Assistance,A61011,
http://opendatacommunities.org/id/london-borough-council/sutton,London Borough of Sutton,10/08/2022,10008654,87.50, FUTUREGYMNASTICS,ACTIVITY FOR A CHILD OVER THE SUMMER HOLIDAYS,Peoples Services,Client Care/Assistance,A61011,
http://opendatacommunities.org/id/london-borough-council/sutton,London Borough of Sutton,10/08/2022,10008654,87.50, FUTUREGYMNASTICS,ACTIVITY FOR A CHILD OVER THE SUMMER HOLIDAYS,Peoples Services,Client Care/Assistance,A61011,
http://opendatacommunities.org/id/london-borough-council/sutton,London Borough of Sutton,10/08/2022,10008654,87.50, FUTUREGYMNASTICS,ACTIVITY FOR A CHILD OVER THE SUMMER HOLIDAYS,Peoples Services,Client Care/Assistance,A61011,
http://opendatacommunities.org/id/london-borough-council/sutton,London Borough of Sutton,10/08/2022,10008654,87.50, FUTUREGYMNASTICS,ACTIVITY FOR A CHILD OVER THE SUMMER HOLIDAYS,Peoples Services,Client Care/Assistance,A61011,
http://opendatacommunities.org/id/london-borough-council/sutton,London Borough of Sutton,09/08/2022,10008654,34.99, AMZNMKTPLACE AMAZON.CO,ITEM NEEDED FOR A CLIENT (100%),Peoples Services,Miscellaneous Expenses,A49000,
http://opendatacommunities.org/id/london-borough-council/sutton,London Borough of Sutton,02/08/2022,10008654,71.04, AIRPAY 34781075-WESTER,TAXI NEEDED FOR A CLIENT,Peoples Services,C.C.A Travel & Subsistance,A61010,
http://opendatacommunities.org/id/london-borough-council/sutton,London Borough of Sutton,02/08/2022,10008654,152.55, TRAVELODGE,HOTEL NEEDED FOR A CLIENT,Peoples Services,Client Care/Assistance,A61011,
http://opendatacommunities.org/id/london-borough-council/sutton,London Borough of Sutton,05/08/2022,10008654,57.08, PREMIER INN,HOTEL STAY REQUIRED FOR A CLIENT,Peoples Services,Client Care/Assistance,A61011,
http://opendatacommunities.org/id/london-borough-council/sutton,London Borough of Sutton,26/07/2022,10008654,"1,943.16", IHS076356499PA01 2022-,SOCIAL WORKER IMMIGRATION DOCUMENTS,Peoples Services,Client Care/Assistance,A61011,
http://opendatacommunities.org/id/london-borough-council/sutton,London Borough of Sutton,27/07/2022,10008654,53.44, UKVI,SOCIAL WORKER IMMIGRATION DOCUMENTS,Peoples Services,Client Care/Assistance,A61011,
http://opendatacommunities.org/id/london-borough-council/sutton,London Borough of Sutton,26/07/2022,10008654,30.00, FACEBK  GY7FVD3H32,FACEBOOK ADVERTISING FOR FOSTERING RECRUITMENT,Peoples Services,Recruitment Expenses,A15026,
http://opendatacommunities.org/id/london-borough-council/sutton,London Borough of Sutton,19/08/2022,10008654,33.29, BLUE FLORIST,THANK YOU FLOWERS FOR A FOSTER CARER,Peoples Services,Equipment And Materials Purchase,A40000,
http://opendatacommunities.org/id/london-borough-council/sutton,London Borough of Sutton,24/08/2022,10008654,29.17, MARKS&SPENCER PLC,ITEMS NEEDED FOR A CLIENT,Peoples Services,Client Care/Assistance,A61011,
http://opendatacommunities.org/id/london-borough-council/sutton,London Borough of Sutton,24/08/2022,10008654,29.17, MARKS&SPENCER PLC,ITEMS NEEDED FOR A CLIENT,Peoples Services,Client Care/Assistance,A61011,
http://opendatacommunities.org/id/london-borough-council/sutton,London Borough of Sutton,23/08/2022,10008654,109.57, EASYJET,FLIGHT NEEDED FOR A SOCIAL WORKER VISIT,Peoples Services,Non-Staff Travel Subsistence & Training,A46006,
http://opendatacommunities.org/id/london-borough-council/sutton,London Borough of Sutton,16/08/2022,10008654,232.75, S.C.T.S,SOCIAL CARE TRAINING SOLUTIONS X1 TRAINING COURSE,Peoples Services,Staff Development And Training,A15022,
http://opendatacommunities.org/id/london-borough-council/sutton,London Borough of Sutton,11/08/2022,10008654,118.80, SQ  PUBLIC POLICY EXCH,"""REDACTED - PERSONAL DATA""- PROTECTION WOMEN AND GIRLS IN THE UK FROM FGM TRAINING COURSE (EXTERNAL TRAINING REQUEST)",Peoples Services,Staff Development And Training,A15022,
http://opendatacommunities.org/id/london-borough-council/sutton,London Borough of Sutton,26/07/2022,10008654,954.00, SQ  VSC PLUS LIMITED,"""REDACTED - PERSONAL DATA"" - LINC LONDON BALI TRAINING COURSE. THE STAFF COLLEGE (EXTERNAL TRAINING REQUEST)",Peoples Services,Staff Development And Training,A15022,
http://opendatacommunities.org/id/london-borough-council/sutton,London Borough of Sutton,11/08/2022,10008654,369.17, NOVOTEL HOTELS,SPLIT - (50%),Peoples Services,Conference Expenses,A43075,
http://opendatacommunities.org/id/london-borough-council/sutton,London Borough of Sutton,04/08/2022,10008654,495.00, WWW.ADASS.ORG.UK,"SPLIT - NCASC CONFERENCE FOR ""REDACTED - PERSONAL DATA"" (50%)",Peoples Services,Subscriptions,A47010,
http://opendatacommunities.org/id/london-borough-council/sutton,London Borough of Sutton,28/07/2022,10008654,30.00, VILLAGE CERAMICS,VILLAGE CERAMICS,Peoples Services,C.C.A Travel & Subsistance,A61010,
http://opendatacommunities.org/id/london-borough-council/sutton,London Borough of Sutton,01/08/2022,10008654,51.83, TRAVELODGE,HOTEL NEEDED FOR A CLIENT,Peoples Services,Bed & Breakfast,A56000,
http://opendatacommunities.org/id/london-borough-council/sutton,London Borough of Sutton,03/08/2022,10008654,15.00, WALLINGTON CARS & COUR,TAXI NEEDED FOR A CLIENT,Peoples Services,C.C.A Travel & Subsistance,A61010,
http://opendatacommunities.org/id/london-borough-council/sutton,London Borough of Sutton,04/08/2022,10008654,15.00, WALLINGTON CARS & COUR,TAXI NEEDED FOR A CLIENT,Peoples Services,C.C.A Travel & Subsistance,A61010,
http://opendatacommunities.org/id/london-borough-council/sutton,London Borough of Sutton,02/08/2022,10008654,264.14, TRAVELODGE,HOTEL STAY,Peoples Services,Client Care/Assistance,A61011,
http://opendatacommunities.org/id/london-borough-council/sutton,London Borough of Sutton,29/07/2022,10008654,335.71, TRAVELODGE,CLIENT REQUIRED A HOTEL STAY,Peoples Services,Client Care/Assistance,A61011,
http://opendatacommunities.org/id/london-borough-council/sutton,London Borough of Sutton,26/07/2022,10008654,497.55, UKVI,SOCIAL WORKER IMMIGRATION DOCUMENTS,Peoples Services,Client Care/Assistance,A61011,
http://opendatacommunities.org/id/london-borough-council/sutton,London Borough of Sutton,27/07/2022,10008654,13.68, UKVI,SOCIAL WORKER IMMIGRATION DOCUMENTS,Peoples Services,Client Care/Assistance,A61011,
http://opendatacommunities.org/id/london-borough-council/sutton,London Borough of Sutton,18/08/2022,10008654,188.50, THOMASKNEALE.CO.UK,FIRE EQUIPMENT,Peoples Services,Miscellaneous Expenses,A49000,
http://opendatacommunities.org/id/london-borough-council/sutton,London Borough of Sutton,03/08/2022,10008654,89.03, STORAGEMART UK #5215,STORAGE UNIT NEEDED FOR A CLIENT,Peoples Services,Storage And Archiving Services,A44085,
http://opendatacommunities.org/id/london-borough-council/sutton,London Borough of Sutton,14/08/2022,10008654,11.93, AMZNMKTPLACE,SPLIT - BLACKMOOR 66779 6-PIECE KITCHEN UTENSILS SET / NON-SCRATCH & HEAT RESISTANT / BPA FREE PLASTIC / MODERN & VIBRANT STYLISH BLACK MARBLE COLOUR / SPACE (100%),Peoples Services,Miscellaneous Expenses,A49000,
http://opendatacommunities.org/id/london-borough-council/sutton,London Borough of Sutton,14/08/2022,10008654,42.48, AMZNMKTPLACE,SPLIT - PREMIER COOKWARE ESSENTIALS FRYING PAN SET - 2 PIECE NON STICK FRY PAN SET - INDUCTION SUITABLE 20CM AND 24CM (100%),Peoples Services,Miscellaneous Expenses,A49000,
http://opendatacommunities.org/id/london-borough-council/sutton,London Borough of Sutton,14/08/2022,10008654,23.86, AMZNMKTPLACE,SPLIT - BLACKMOOR 66779 6-PIECE KITCHEN UTENSILS SET / NON-SCRATCH & HEAT RESISTANT / BPA FREE PLASTIC / MODERN & VIBRANT STYLISH BLACK MARBLE COLOUR / SPACE (100%),Peoples Services,Miscellaneous Expenses,A49000,
http://opendatacommunities.org/id/london-borough-council/sutton,London Borough of Sutton,14/08/2022,10008654,9.16, AMZNMKTPLACE,SPLIT - ARGON TABLEWARE 6X WHITE EGG CUP HOLDER SET - CLASSIC STYLE PORCELAIN CUPS FOR HARD SOFT BOILED EGGS - MICROWAVE AND DISHWASHER SAFE (100%),Peoples Services,Miscellaneous Expenses,A49000,
http://opendatacommunities.org/id/london-borough-council/sutton,London Borough of Sutton,14/08/2022,10008654,155.72, AMZNMKTPLACE AMAZON.CO,"SPLIT - CUTLERY SET, PLEAFIND CUTLERY SET FOR 4, 16 PIECE SILVERWARE SET, STAINLESS STEEL KNIFE AND FORK SET, FLATWARE SET, MIRROR POLISHED, DISHWASHER SAFE (88.66%)",Peoples Services,Miscellaneous Expenses,A49000,
http://opendatacommunities.org/id/london-borough-council/sutton,London Borough of Sutton,14/08/2022,10008654,19.92, AMZNMKTPLACE AMAZON.CO,SPLIT - HIGH GAIN FREEVIEW TV AERIAL -AUGUST DTA240 - HD PORTABLE INDOOR/OUTDOOR DIGITAL HD ANTENNA FOR USB TV TUNER / DVB-T TELEVISION / DAB RADIO / SD / 4K (11.34%),Peoples Services,Miscellaneous Expenses,A49000,
http://opendatacommunities.org/id/london-borough-council/sutton,London Borough of Sutton,14/08/2022,10008654,23.32, AMZNMKTPLACE,SPLIT - CARNABY CHELSEA PORCELAIN CUP AND SAUCER SET OF 4 WHITE LINEN TEA COFFEE MUGS OFFICE HOME DINNERWARE 200CC CRM1271 (100%),Peoples Services,Miscellaneous Expenses,A49000,
http://opendatacommunities.org/id/london-borough-council/sutton,London Borough of Sutton,10/08/2022,10008654,25.98, AMZNMKTPLACE AMAZON.CO,"SPLIT - BUTHSKU CLEAR PLASTIC TUMBLERS ACRYLIC STACKABLE DRINKING GLASSES PORTABLE CUPS FOR ADULTS KIDS, 360ML SET OF 4 PLASTIC GLASSES (CLEAR WHITE) (37.68%)",Peoples Services,Miscellaneous Expenses,A49000,
http://opendatacommunities.org/id/london-borough-council/sutton,London Borough of Sutton,10/08/2022,10008654,25.98, AMZNMKTPLACE AMAZON.CO,"SPLIT - BUTHSKU CLEAR PLASTIC TUMBLERS ACRYLIC STACKABLE DRINKING GLASSES PORTABLE CUPS FOR ADULTS KIDS, 360ML SET OF 4 PLASTIC GLASSES (CLEAR WHITE) (37.68%)",Peoples Services,Miscellaneous Expenses,A49000,
http://opendatacommunities.org/id/london-borough-council/sutton,London Borough of Sutton,10/08/2022,10008654,18.16, AMZNMKTPLACE AMAZON.CO,"SPLIT - RHINOCABLES AERIAL COAXIAL CABLE WITH GOLD-PLATED CONNECTORS, MALE TO MALE RF COAX LEAD WITH FEMALE ADAPTER COUPLER FOR FREEVIEW, FREESAT, SKY, VIRGIN (21.8%)",Peoples Services,Miscellaneous Expenses,A49000,
http://opendatacommunities.org/id/london-borough-council/sutton,London Borough of Sutton,10/08/2022,10008654,78.21, AMZNMKTPLACE AMAZON.CO,"SPLIT - CLEAR GLASS VASE - PREMIUM QUALITY FLOWER VASE WITH NON-SLIP PAD, WHITE VASE FOR RUSTIC HOME DECOR, DECORATIVE VASE FOR MODERN FARMHOUSE, IDEAL SHELF, (78.2%)",Peoples Services,Miscellaneous Expenses,A49000,
http://opendatacommunities.org/id/london-borough-council/sutton,London Borough of Sutton,10/08/2022,10008654,44.76, AMZNMKTPLACE AMAZON.CO,"SPLIT - ZYBUX - SET OF 2 - CHOPPING BOARDS - 35 X 23CM - OVAL PLASTIC CUTTING BOARD BPA FREE WITH JUICE GROOVE, PROFESSIONAL KITCHEN CUTTING BOARDS WITH HANGI (100%)",Peoples Services,Miscellaneous Expenses,A49000,
http://opendatacommunities.org/id/london-borough-council/sutton,London Borough of Sutton,10/08/2022,10008654,110.25, AMZNMKTPLACE,SPLIT - NEW 3PC PRIMA STAINLESS STEEL COOKWARE SAUCEPAN PAN POT SET KITCHEN MILK COOK (100%),Peoples Services,Miscellaneous Expenses,A49000,
http://opendatacommunities.org/id/london-borough-council/sutton,London Borough of Sutton,10/08/2022,10008654,16.62, AMZNMKTPLACE,SPLIT - 3 LITRE STAINLESS STEEL PEDAL BIN FOR KITCHEN BATHROOM TOILET RUBBISH TRAY (WHITE) (100%),Peoples Services,Miscellaneous Expenses,A49000,
http://opendatacommunities.org/id/london-borough-council/sutton,London Borough of Sutton,10/08/2022,10008654,159.96, AMZNMKTPLACE AMAZON.CO,SPLIT - QUEST MODERN KETTLE & TOASTER SETS / 1.7L CAPACITY KETTLE & 2 SLICE TOASTER/SPOUT FILTER KETTLE/TOASTER WITH VARIABLE BROWNING/CONVENIENT KITCHEN ESSE (100%),Peoples Services,Miscellaneous Expenses,A49000,
http://opendatacommunities.org/id/london-borough-council/sutton,London Borough of Sutton,10/08/2022,10008654,10.82, AMZNMKTPLACE AMAZON.CO,"SPLIT - LEPRO E27 SCREW BULBS 60W EQUIVALENT, WARM WHITE 2700K E27 LED BULBS, 8W 806LM EDISON SCREW ES LED LIGHT BULB, ENERGY SAVING E27 BULBS FOR LAMP, NON-D (100%)",Peoples Services,Miscellaneous Expenses,A49000,
http://opendatacommunities.org/id/london-borough-council/sutton,London Borough of Sutton,10/08/2022,10008654,57.28, AMZNMKTPLACE AMAZON.CO,"SPLIT - COLLAPSIBLE COLANDER SET, DIAMETER SIZES 19.5CM-2 QUART AND 24CM-3 QUART, SILICONE ROUND COLANDER WITH LONG HANDLE, KITCHEN STRAINER FOR PASTA, NOODLE (100%)",Peoples Services,Miscellaneous Expenses,A49000,
http://opendatacommunities.org/id/london-borough-council/sutton,London Borough of Sutton,10/08/2022,10008654,48.86, AMZNMKTPLACE AMAZON.CO,"SPLIT - OTSTAR 4 IN 1 CAN OPENER TIN OPENER WITH BOTTLE OPENER, MANUAL CAN OPENER SAFE CUT & SMOOTH EDGE WITH ERGONOMIC GRIP LARGE TURN KNOB GREAT FOR SENIORS (36.75%)",Peoples Services,Miscellaneous Expenses,A49000,
http://opendatacommunities.org/id/london-borough-council/sutton,London Borough of Sutton,10/08/2022,10008654,84.09, AMZNMKTPLACE AMAZON.CO,"SPLIT - OTSTAR LATEST JAR OPENER, 5 IN 1 MULTI FUNCTION BOTTLE OPENER RING PULL CAN OPENER KIT FOR WEAK HANDS, ELDERLY, ARTHRITIS SUFFERERS (BLACK AND RED) (63.25%)",Peoples Services,Miscellaneous Expenses,A49000,
http://opendatacommunities.org/id/london-borough-council/sutton,London Borough of Sutton,09/08/2022,10008654,26.56, AMZNMKTPLACE,"SPLIT - LAMAPEE POTATO PEELER, STAINLESS STEEL VEGETABLE PEELER FOR KITCHEN, BLACK - NEW UPGRADE (100%)",Peoples Services,Miscellaneous Expenses,A49000,
http://opendatacommunities.org/id/london-borough-council/sutton,London Borough of Sutton,09/08/2022,10008654,93.28, AMZNMKTPLACE,SPLIT - KITCHEN BIN TOUCH TOP BIN FOR HOME OFFICE SCHOOL KITCHEN BATHROOM FREESTANDING ROUND 45 LITRE PORTABLE BIN WITH REMOVABLE LID - BLACK 45L... (100%),Peoples Services,Miscellaneous Expenses,A49000,
http://opendatacommunities.org/id/london-borough-council/sutton,London Borough of Sutton,09/08/2022,10008654,40.70, AMZNMKTPLACE,SPLIT - HIGH GRADE EXTRA LARGE PLASTIC DISH DRAINER PLATE AND CUTLERY RACK IN SILVER (104.36%),Peoples Services,Miscellaneous Expenses,A49000,
http://opendatacommunities.org/id/london-borough-council/sutton,London Borough of Sutton,09/08/2022,10008654,-1.70, AMZNMKTPLACE,BALANCING ENTRY AMOUNT (-13.08%),Peoples Services,Miscellaneous Expenses,A49000,
http://opendatacommunities.org/id/london-borough-council/sutton,London Borough of Sutton,09/08/2022,10008654,11.88, AMZNMKTPLACE,"SPLIT - WENKO ECONOMIC WHITE-TOILET BRUSH HOLDER, 12 X 12 X 39 CM (100%)",Peoples Services,Miscellaneous Expenses,A49000,
http://opendatacommunities.org/id/london-borough-council/sutton,London Borough of Sutton,09/08/2022,10008654,153.28, AMZNMKTPLACE,"SPLIT - AAMEN 3 TIER CLOTHES AIRER, CLOTHES DRYING RACK, LAUNDRY RACK, WASHING AIRER, FOLDABLE METALLIC CLOTHES DRYER WITH 15M DRYING SPACE PERFECT FOR BOTH I (100%)",Peoples Services,Miscellaneous Expenses,A49000,
http://opendatacommunities.org/id/london-borough-council/sutton,London Borough of Sutton,09/08/2022,10008654,39.96, AMZNMKTPLACE,SPLIT - [&#X1D412;&#X1D41E;&#X1D42D; &#X1D428;&#X1D41F; &#X1D7D0;] &#X1D412;&#X1D422;&#X1D425;&#X1D42F;&#X1D41E;&#X1D42B;/&#X1D412;&#X1D428;&#X1D41F;&#X1D42D; (100%),Peoples Services,Miscellaneous Expenses,A49000,
http://opendatacommunities.org/id/london-borough-council/sutton,London Borough of Sutton,09/08/2022,10008654,266.24, AMZNMKTPLACE AMAZON.CO,"SPLIT - SMALL KITCHEN KNIFE SET | 3 PIECES | GERMAN HIGH CARBON STAINLESS STEEL | WIDE UTILITY KNIFE, SERRATED TOMATO KNIFE, PARING KNIFE | BEST OPTION IN SMA (100%)",Peoples Services,Miscellaneous Expenses,A49000,
http://opendatacommunities.org/id/london-borough-council/sutton,London Borough of Sutton,22/08/2022,10008654,3.74, AMZNMKTPLACE,SPLIT - WHAM SILVER 5 COMPARTMENT PLASTIC CUTLERY HOLDER TRAY DRAWER ORGANISER RACK (100%),Peoples Services,Miscellaneous Expenses,A49000,
http://opendatacommunities.org/id/london-borough-council/sutton,London Borough of Sutton,22/08/2022,10008654,7.48, AMZNMKTPLACE,SPLIT - WHAM SILVER 5 COMPARTMENT PLASTIC CUTLERY HOLDER TRAY DRAWER ORGANISER RACK (100%),Peoples Services,Miscellaneous Expenses,A49000,
http://opendatacommunities.org/id/london-borough-council/sutton,London Borough of Sutton,22/08/2022,10008654,3.74, AMZNMKTPLACE,SPLIT - WHAM SILVER 5 COMPARTMENT PLASTIC CUTLERY HOLDER TRAY DRAWER ORGANISER RACK (100%),Peoples Services,Miscellaneous Expenses,A49000,
http://opendatacommunities.org/id/london-borough-council/sutton,London Borough of Sutton,20/08/2022,10008654,3.74, AMZNMKTPLACE,SPLIT - WHAM SILVER 5 COMPARTMENT PLASTIC CUTLERY HOLDER TRAY DRAWER ORGANISER RACK (100%),Peoples Services,Miscellaneous Expenses,A49000,
http://opendatacommunities.org/id/london-borough-council/sutton,London Borough of Sutton,20/08/2022,10008654,3.74, AMZNMKTPLACE,SPLIT - WHAM SILVER 5 COMPARTMENT PLASTIC CUTLERY HOLDER TRAY DRAWER ORGANISER RACK (100%),Peoples Services,Miscellaneous Expenses,A49000,
http://opendatacommunities.org/id/london-borough-council/sutton,London Borough of Sutton,15/08/2022,10008654,23.32, AMZNMKTPLACE,SPLIT - CARNABY CHELSEA PORCELAIN CUP AND SAUCER SET OF 4 WHITE LINEN TEA COFFEE MUGS OFFICE HOME DINNERWARE 200CC CRM1271 (100%),Peoples Services,Miscellaneous Expenses,A49000,
http://opendatacommunities.org/id/london-borough-council/sutton,London Borough of Sutton,15/08/2022,10008654,23.32, AMZNMKTPLACE,SPLIT - CARNABY CHELSEA PORCELAIN CUP AND SAUCER SET OF 4 WHITE LINEN TEA COFFEE MUGS OFFICE HOME DINNERWARE 200CC CRM1271 (100%),Peoples Services,Miscellaneous Expenses,A49000,
http://opendatacommunities.org/id/london-borough-council/sutton,London Borough of Sutton,14/08/2022,10008654,23.86, AMZNMKTPLACE,SPLIT - BLACKMOOR 66779 6-PIECE KITCHEN UTENSILS SET / NON-SCRATCH & HEAT RESISTANT / BPA FREE PLASTIC / MODERN & VIBRANT STYLISH BLACK MARBLE COLOUR / SPACE (100%),Peoples Services,Miscellaneous Expenses,A49000,
http://opendatacommunities.org/id/london-borough-council/sutton,London Borough of Sutton,14/08/2022,10008654,15.64, AMZNMKTPLACE,SPLIT - SET OF 2 VENTILATED MICROWAVE FOOD PLATE DISH COVER KITCHEN COOKING (100%),Peoples Services,Miscellaneous Expenses,A49000,
http://opendatacommunities.org/id/london-borough-council/sutton,London Borough of Sutton,14/08/2022,10008654,56.64, AMZNMKTPLACE,SPLIT - PREMIER COOKWARE ESSENTIALS FRYING PAN SET - 2 PIECE NON STICK FRY PAN SET - INDUCTION SUITABLE 20CM AND 24CM (100%),Peoples Services,Miscellaneous Expenses,A49000,
http://opendatacommunities.org/id/london-borough-council/sutton,London Borough of Sutton,14/08/2022,10008654,23.86, AMZNMKTPLACE,SPLIT - BLACKMOOR 66779 6-PIECE KITCHEN UTENSILS SET / NON-SCRATCH & HEAT RESISTANT / BPA FREE PLASTIC / MODERN & VIBRANT STYLISH BLACK MARBLE COLOUR / SPACE (100%),Peoples Services,Miscellaneous Expenses,A49000,
http://opendatacommunities.org/id/london-borough-council/sutton,London Borough of Sutton,12/08/2022,10008654,22.44, AMZNMKTPLACE,"SPLIT - ADDIS 518459 ECO MADE FROM 100% RECYCLED PLASTIC LARGE RECTANGULAR WASHING UP BOWL, 9.5 LITRE, LIGHT GREY (100%)",Peoples Services,Miscellaneous Expenses,A49000,
http://opendatacommunities.org/id/london-borough-council/sutton,London Borough of Sutton,11/08/2022,10008654,53.73, AMZNMKTPLACE AMAZON.CO,SPLIT - BLACK GEOMETRIC METAL WIRE WOODEN BASE DECORATIVE STORAGE/ DISPLAY BASKET FRUIT BOWL (100%),Peoples Services,Miscellaneous Expenses,A49000,
http://opendatacommunities.org/id/london-borough-council/sutton,London Borough of Sutton,11/08/2022,10008654,107.60, AMZNMKTPLACE,"SPLIT - HOOBRO SIDE TABLE C SHAPED, SOFA END TABLE, LAPTOP COFFEE SNACK TABLE, FOR SMALL SPACE, LIVING ROOM, BEDROOM, SLIM, NARROW, TALL, WOOD LOOK ACCENT FUR (100%)",Peoples Services,Miscellaneous Expenses,A49000,
http://opendatacommunities.org/id/london-borough-council/sutton,London Borough of Sutton,11/08/2022,10008654,54.96, AMZNMKTPLACE,"SPLIT - LED DESK LAMP, USB RECHARGEABLE TABLE LAMP WITH 3 LEVELS BRIGHTNESS, TOUCH SENSOR CONTROL, MOOD LIGHT ON BASE, ENERGY-SAVING PORTABLE READING LIGHT FO (100%)",Peoples Services,Miscellaneous Expenses,A49000,
http://opendatacommunities.org/id/london-borough-council/sutton,London Borough of Sutton,11/08/2022,10008654,37.23, AMZNMKTPLACE,"SPLIT - PERFORMANCE HEALTH OVERBED TABLE WITH WHEELS, LAPTOP DESK WITH WHEELS, FULLY ADJUSTABLE HEIGHT AND ANGLE, LAMINATED TOP (100%)",Peoples Services,Miscellaneous Expenses,A49000,
http://opendatacommunities.org/id/london-borough-council/sutton,London Borough of Sutton,11/08/2022,10008654,37.23, AMZNMKTPLACE,"SPLIT - PERFORMANCE HEALTH OVERBED TABLE WITH WHEELS, LAPTOP DESK WITH WHEELS, FULLY ADJUSTABLE HEIGHT AND ANGLE, LAMINATED TOP (100%)",Peoples Services,Miscellaneous Expenses,A49000,
http://opendatacommunities.org/id/london-borough-council/sutton,London Borough of Sutton,11/08/2022,10008654,66.64, AMZNMKTPLACE,"SPLIT - HOMEWAY PREMIUM GREY STONEWARE MUGS, COFFEE MUGS, TEA MUGS, HOT CHOCOLATE MUGS. 285ML OF GREY, BLACK, DARK GREY, WHITE SET OF 4 (100%)",Peoples Services,Miscellaneous Expenses,A49000,
http://opendatacommunities.org/id/london-borough-council/sutton,London Borough of Sutton,11/08/2022,10008654,37.23, AMZNMKTPLACE,"SPLIT - PERFORMANCE HEALTH OVERBED TABLE WITH WHEELS, LAPTOP DESK WITH WHEELS, FULLY ADJUSTABLE HEIGHT AND ANGLE, LAMINATED TOP (100%)",Peoples Services,Miscellaneous Expenses,A49000,
http://opendatacommunities.org/id/london-borough-council/sutton,London Borough of Sutton,11/08/2022,10008654,37.23, AMZNMKTPLACE,"SPLIT - PERFORMANCE HEALTH OVERBED TABLE WITH WHEELS, LAPTOP DESK WITH WHEELS, FULLY ADJUSTABLE HEIGHT AND ANGLE, LAMINATED TOP (100%)",Peoples Services,Miscellaneous Expenses,A49000,
http://opendatacommunities.org/id/london-borough-council/sutton,London Borough of Sutton,11/08/2022,10008654,37.23, AMZNMKTPLACE,"SPLIT - PERFORMANCE HEALTH OVERBED TABLE WITH WHEELS, LAPTOP DESK WITH WHEELS, FULLY ADJUSTABLE HEIGHT AND ANGLE, LAMINATED TOP (100%)",Peoples Services,Miscellaneous Expenses,A49000,
http://opendatacommunities.org/id/london-borough-council/sutton,London Borough of Sutton,11/08/2022,10008654,37.23, AMZNMKTPLACE,"SPLIT - PERFORMANCE HEALTH OVERBED TABLE WITH WHEELS, LAPTOP DESK WITH WHEELS, FULLY ADJUSTABLE HEIGHT AND ANGLE, LAMINATED TOP (100%)",Peoples Services,Miscellaneous Expenses,A49000,
http://opendatacommunities.org/id/london-borough-council/sutton,London Borough of Sutton,10/08/2022,10008654,9.16, AMZNMKTPLACE AMAZON.CO,"SPLIT - CUTLERY SET, PLEAFIND CUTLERY SET FOR 4, 16 PIECE SILVERWARE SET, STAINLESS STEEL KNIFE AND FORK SET, FLATWARE SET, MIRROR POLISHED, DISHWASHER SAFE (55.31%)",Peoples Services,Miscellaneous Expenses,A49000,
http://opendatacommunities.org/id/london-borough-council/sutton,London Borough of Sutton,10/08/2022,10008654,7.40, AMZNMKTPLACE AMAZON.CO,"SPLIT - LED E14 SMALL EDISON SCREW GOLF BALL BULB, 5.5W 470LM P45 E14 LED LIGHT BULB,50W INCANDESCENT BULB EQUIVALENT,3000K WARM WHITE EYE PROTECTION, DEAL FO (44.69%)",Peoples Services,Miscellaneous Expenses,A49000,
http://opendatacommunities.org/id/london-borough-council/sutton,London Borough of Sutton,10/08/2022,10008654,12.99, AMZNMKTPLACE AMAZON.CO,"SPLIT - BUTHSKU CLEAR PLASTIC TUMBLERS ACRYLIC STACKABLE DRINKING GLASSES PORTABLE CUPS FOR ADULTS KIDS, 360ML SET OF 4 PLASTIC GLASSES (CLEAR WHITE) (100%)",Peoples Services,Miscellaneous Expenses,A49000,
http://opendatacommunities.org/id/london-borough-council/sutton,London Borough of Sutton,10/08/2022,10008654,14.16, AMZNMKTPLACE AMAZON.CO,"SPLIT - AAA BATTERIES PACK OF 40 BY GP AA BATTERIES ULTRA ALKALINE - 10 YEAR SHELF LIFE, IDEAL FOR EVERYDAY HUNGRY DEVICES, LONG LASTING POWER, ANTI-LEAKAGE T (24.64%)",Peoples Services,Miscellaneous Expenses,A49000,
http://opendatacommunities.org/id/london-borough-council/sutton,London Borough of Sutton,09/08/2022,10008654,45.00, ALLIUM,"FUNERALWREATH""REDACTED - PERSONAL DATA""",Peoples Services,Funeral Expenses,A44220,
http://opendatacommunities.org/id/london-borough-council/sutton,London Borough of Sutton,08/08/2022,10008654,90.00, ALLIUM,"FUNERALWREATHS""REDACTED - PERSONAL DATA""",Peoples Services,Funeral Expenses,A44220,
http://opendatacommunities.org/id/london-borough-council/sutton,London Borough of Sutton,27/07/2022,10008654,11.00, SUTTON REGISTER OFFICE,"DEATH CER""REDACTED - PERSONAL DATA""",Peoples Services,Funeral Expenses,A44220,
http://opendatacommunities.org/id/london-borough-council/sutton,London Borough of Sutton,11/08/2022,10008654,369.16, NOVOTEL HOTELS,SPLIT - (50%),Peoples Services,Conference Expenses,A43075,
http://opendatacommunities.org/id/london-borough-council/sutton,London Borough of Sutton,13/08/2022,10008654,725.00, NOVOTEL HOTELS,HOTEL ACCOMMODATION FOR REDACTED - PERSONAL DATA ATTEND THE NCASS 22 CONFERENCE 2-4 NOVEMBER,Peoples Services,Conference Expenses,A43075,
http://opendatacommunities.org/id/london-borough-council/sutton,London Borough of Sutton,04/08/2022,10008654,495.00, WWW.ADASS.ORG.UK,"SPLIT - NCASC CONFERENCE FOR ""REDACTED - PERSONAL DATA"" (50%)",Peoples Services,Conference Expenses,A43075,
http://opendatacommunities.org/id/london-borough-council/sutton,London Borough of Sutton,10/08/2022,10008654,990.00, WWW.ADASS.ORG.UK,"ATTENDING THE NCASC 22 CONFERENCE 2-4 NOVEMBER  FOR""REDACTED - PERSONAL DATA""",Peoples Services,Members Expenses - Conferences,A46503,
http://opendatacommunities.org/id/london-borough-council/sutton,London Borough of Sutton,08/08/2022,10008654,29.20, AMZNMKTPLACE,SPLIT - KENSINGTON DESKTOP PERIPHERAL KIT MICROSAVER 2.0 (100%),Environment Housing and Neighbourhoods,Other Capital Expenditure,C20002,
http://opendatacommunities.org/id/london-borough-council/sutton,London Borough of Sutton,08/08/2022,10008654,24.57, AMZNMKTPLACE,SPLIT - KENSINGTON MICROSAVER 2.0 LOCK - KEYED (100%),Environment Housing and Neighbourhoods,Other Capital Expenditure,C20002,
http://opendatacommunities.org/id/london-borough-council/sutton,London Borough of Sutton,01/08/2022,10008654,45.49, GSUITE_SUTTONCOLLEGE.A,GOOGLE CLOUD EMEA LIMITED 4320764646,Health and Wellbeing,Subscriptions,A47010,
http://opendatacommunities.org/id/london-borough-council/sutton,London Borough of Sutton,07/08/2022,10008654,47.99, ADOBE STOCK,ADOBE 070822 47.99,Health and Wellbeing,Publicity,A44266,
http://opendatacommunities.org/id/london-borough-council/sutton,London Borough of Sutton,01/08/2022,10008654,242.02, FACEBK  R74PMFK6A2,FACEBOOK AD 010822 240.02,Health and Wellbeing,Publicity,A44266,
http://opendatacommunities.org/id/london-borough-council/sutton,London Borough of Sutton,30/07/2022,10008654,125.00, MAILCHIMP,MAILCHIMP 300722 125.00,Health and Wellbeing,Publicity,A44266,
http://opendatacommunities.org/id/london-borough-council/sutton,London Borough of Sutton,17/08/2022,10008654,29.17, LONDON AND BELCHER OF,"FLOWERS FOR ""REDACTED - PERSONAL DATA""",Health and Wellbeing,Miscellaneous Expenses,A49000,
http://opendatacommunities.org/id/london-borough-council/sutton,London Borough of Sutton,11/08/2022,10008654,282.61, C BREWER & SONS LT,EQUIPMENT AND PAINT FOR MAKING GOOD AT WALLINGTON OLD TOWN HALL,Health and Wellbeing,Other Property Repairs & Maintenance,A20007,
http://opendatacommunities.org/id/london-borough-council/sutton,London Borough of Sutton,23/08/2022,10008654,6.04, WALLINGTON BARGAIN BUY,PURCHASE OF CLEANING ITEMS PREPARING FOR RETRACTION FROM WALLINGTON OLD TOWN HALL,Health and Wellbeing,Other Property Repairs & Maintenance,A20007,
http://opendatacommunities.org/id/london-borough-council/sutton,London Borough of Sutton,05/08/2022,10008654,132.37, TRAVELODGE,05-08-2022 ACCOMMODATION FOR 01-09-2022 (INC 20% VAT)05-08-2022 UNLIMITED BREAKFAST (INC 20% VAT)05-08-2022 CORPORATE CARD FEE (INC 20% VAT),Peoples Services,LAC - Education,A44280,
http://opendatacommunities.org/id/london-borough-council/sutton,London Borough of Sutton,03/08/2022,10008654,101.88, TWINKL,TWINKL ULTIMATE BUNDLE SINGLE USER SUBSCRIPTION,Peoples Services,LAC - Education,A44280,
http://opendatacommunities.org/id/london-borough-council/sutton,London Borough of Sutton,02/08/2022,10008654,420.00, KINGWHIPPYSURREY,ICE CREAM VAN HIRE - 100 SERVINGS - 03/08/22,Peoples Services,LAC - Education,A44280,
http://opendatacommunities.org/id/london-borough-council/sutton,London Borough of Sutton,01/08/2022,10008654,27.49, AMZNMKTPLACE,"SPLIT - 7 HABITS OF HIGHLY EFFECTIVE PEOPLE, DEEP WORK, EAT THAT FROG, SO GOOD THEY CANT IGNORE YOU 4 BOOKS COLLECTION SET (100%)",Peoples Services,LAC - Education,A44280,
